bitfinex-derivatives/quotes_ETHF0:USTF0_20250501
["timestamp","ask_amount","ask_price","bid_price","bid_amount"]
[1746111943472,3.60530297,1849.4,1849.3,9.2030759]
[1746111943782,4.68635297,1849.4,1849.3,8.1219659]
[1746111944783,4.68635297,1849.4,1849.3,9.2030759]
[1746111945186,4.68635297,1849.4,1849.3,8.1219659]
[1746111945573,4.68635297,1849.4,1849.3,9.2030759]
[1746111945884,3.60530297,1849.4,1849.3,9.2030759]
[1746111946183,4.68635297,1849.4,1849.3,9.2030759]
[1746111947385,3.60530297,1849.4,1849.3,9.2030759]
[1746111947574,4.68635297,1849.4,1849.3,9.2030759]
[1746111948481,3.60530297,1849.4,1849.3,9.2030759]
[1746111948683,4.68635297,1849.4,1849.3,9.2030759]
[1746111948886,3.60530297,1849.4,1849.3,9.2030759]
[1746111949486,3.60530297,1849.4,1849.3,1.08111]
[1746111949789,3.60530297,1849.4,1849.3,9.2030759]
[1746111949989,3.60530297,1849.4,1849.3,14.2030759]
[1746111950590,10.09411743,1849.8,1849.7,1.08087]
[1746111950591,1.08086,1849.8,1849.7,1.08087]
[1746111950785,1.08079,1849.9,1849.8,1.08076]
[1746111950985,1.08079,1849.9,1849.8,8.1219659]
[1746111951487,1.08079,1849.9,1849.8,9.2027759]
[1746111954093,1.08079,1849.9,1849.8,8.1219659]
[1746111954686,1.08087,1849.7,1849.6,4.28868]
[1746111954883,5.90975,1849.9,1849.7,8.1219659]
[1746111955089,1.08087,1849.7,1849.6,8.1219659]
[1746111955587,1.08093,1849.6,1849.5,4.78494]
[1746111955785,1.08093,1849.6,1849.5,1.3517]
[1746111955984,1.08093,1849.6,1849.5,9.4736659]
[1746111956892,1.08093,1849.6,1849.5,10.5546559]
[1746111957188,1.08093,1849.6,1849.5,9.4736659]
[1746111957393,1.0809,1849.7,1849.6,1.08087]
[1746111957593,1.08087,1849.8,1849.7,1.08086]
[1746111958185,1.08087,1849.8,1849.7,9.2028259]
[1746111958386,1.08077,1849.9,1849.8,1.08076]
[1746111958587,1.08077,1849.9,1849.8,8.1219659]
[1746111958787,1.08077,1849.9,1849.8,1.08081]
[1746111959188,1.08077,1849.9,1849.5,9.96444]
[1746111959395,1.08085,1849.8,1849.7,1.08081]
[1746111959794,1.08081,1849.9,1849.8,1.08081]
[1746111960091,1.08081,1849.9,1849.8,9.2027759]
[1746111960293,1.08081,1849.9,1849.8,8.1219659]
[1746111960890,1.08081,1849.9,1849.8,9.2027759]
[1746111961091,1.08081,1849.9,1849.8,8.1219659]
[1746111961493,1.08092,1849.7,1849.6,1.0809]
[1746111961689,1.08085,1849.8,1849.7,1.08085]
[1746111962095,1.08085,1849.8,1849.7,9.2028159]
[1746111962297,1.08085,1849.8,1849.7,12.4106159]
[1746111962592,2.70175,1850.0,1849.7,11.3297659]
[1746111962790,1.08081,1849.8,1849.7,4.28864]
[1746111962996,1.08093,1849.6,1849.5,2.43266]
[1746111963500,1.08093,1849.6,1849.5,10.5546259]
[1746111963894,1.08093,1849.6,1849.5,9.4736659]
[1746111964094,1.08093,1849.6,1849.5,1.3517]
[1746111964692,1.08093,1849.6,1849.5,10.5546559]
[1746111964896,1.08093,1849.7,1849.6,1.0809]
[1746111965193,1.08093,1849.7,1849.6,8.1219659]
[1746111965799,1.08093,1849.7,1849.6,9.2028959]
[1746111965998,1.08093,1849.7,1849.6,8.1219659]
[1746111966407,1.08093,1849.7,1849.6,9.2028959]
[1746111966702,1.08086,1849.8,1849.7,1.08086]
[1746111966998,1.08086,1849.8,1849.7,8.1219659]
[1746111967194,1.08088,1849.7,1849.6,1.08088]
[1746111968099,1.08084,1849.8,1849.7,9.2028059]
[1746111968295,1.08084,1849.8,1849.7,12.4106059]
[1746111968499,1.08084,1849.8,1849.7,11.3297659]
[1746111968804,1.08081,1849.8,1849.7,12.4105959]
[1746111969697,1.08081,1849.8,1849.7,8.1219659]
[1746111970305,1.08081,1849.8,1849.7,9.2028359]
[1746111970807,1.08081,1849.8,1849.7,8.1219659]
[1746111971195,1.08093,1849.6,1849.5,1.3517]
[1746111972504,10.16473,1849.7,1849.5,1.3517]
[1746111972803,1.08093,1849.6,1849.5,10.5546259]
[1746111973000,5.876,1849.7,1849.6,9.2028959]
[1746111973296,1.08085,1849.8,1849.7,1.08084]
[1746111973502,1.08089,1849.7,1849.6,1.08088]
[1746111973704,1.08093,1849.6,1849.5,4.28874]
[1746111973908,1.08093,1849.6,1849.5,1.08094]
[1746111974107,1.08093,1849.6,1849.5,8.1219659]
[1746111974500,1.08099,1849.5,1849.4,3.703]
[1746111974697,5.91009,1849.7,1849.3,3.2078]
[1746111974900,1.08105,1849.4,1849.3,8.1219659]
[1746111975604,1.08117,1849.2,1849.1,45.089]
[1746111976008,1.08117,1849.2,1849.1,53.2109659]
[1746111976504,1.08117,1849.2,1849.1,52.1297659]
[1746111976710,1.08128,1849.0,1848.9,1.08132]
[1746111976898,1.08134,1848.9,1848.8,8.1219659]
[1746111977103,9.0838,1849.1,1848.9,0.27064]
[1746111977297,5.876,1849.0,1848.9,0.27064]
[1746111977503,3.2078,1849.6,1849.0,8.1219659]
[1746111977707,1.08114,1849.3,1849.1,6.9108]
[1746111977906,3.2078,1849.6,1849.4,8.1219659]
[1746111978105,4.28876,1849.6,1849.5,8.1219659]
[1746111978700,3.2078,1849.6,1849.5,9.2029559]
[1746111978901,4.28873,1849.6,1849.5,8.1219659]
[1746111979101,2.70192,1849.9,1849.5,12.4107359]
[1746111979307,2.70192,1849.9,1849.6,8.1219659]
[1746111979502,1.08087,1849.7,1849.5,4.28874]
[1746111979700,1.08087,1849.7,1849.6,3.701]
[1746111979906,1.08087,1849.7,1849.6,11.8229659]
[1746111980613,1.08084,1849.8,1849.6,11.8229659]
[1746111980807,3.2078,1850.0,1849.7,8.1219659]
[1746111981002,1.081,1849.5,1849.3,3.701]
[1746111981310,1.08099,1849.5,1849.4,9.2029859]
[1746111981614,9.34983432,1850.2,1849.4,11.8229659]
[1746111981615,1.08091,1849.7,1849.4,11.8229659]
[1746111981811,1.08091,1849.7,1849.6,11.3297659]
[1746111982011,1.08091,1849.7,1849.6,8.1219659]
[1746111982206,5.90957,1850.0,1849.8,1.0808]
[1746111982207,3.2078,1850.0,1849.8,1.0808]
[1746111982515,1.08076,1849.9,1849.8,9.2027559]
[1746111982705,1.08076,1849.9,1849.8,1.08079]
[1746111982907,2.70162,1850.1,1849.7,7.98966]
[1746111983106,1.08074,1850.0,1849.8,9.2027759]
[1746111983307,1.0807,1850.0,1849.9,8.1219659]
[1746111983507,1.08076,1849.9,1849.7,4.78183]
[1746111983708,1.08076,1849.9,1849.8,1.08081]
[1746111983901,1.08076,1849.9,1849.8,9.2027759]
[1746111984106,1.08076,1849.9,1849.8,8.1219659]
[1746111985906,5.90964,1850.0,1849.4,3.2078]
[1746111986112,1.08087,1849.7,1849.6,8.1219659]
[1746111986610,1.08087,1849.7,1849.6,48.9219659]
[1746111986916,1.08087,1849.7,1849.6,50.0028959]
[1746111987113,1.08105,1849.4,1849.3,7.16381235]
[1746111989111,1.08113,1849.3,1849.1,49.04499235]
[1746111989409,1.08113,1849.3,1849.2,8.1219659]
[1746111989609,1.08113,1849.3,1849.2,11.8219659]
[1746111990512,1.08117,1849.2,1849.1,7.16381235]
[1746111990716,6.95717,1849.2,1849.1,7.16381235]
[1746111991014,11.95717,1849.2,1849.1,7.16381235]
[1746111991216,11.95717,1849.2,1849.1,4.74063235]
[1746111991511,12.05290345,1849.2,1849.1,2.16572235]
[1746111991714,1.08122,1849.1,1849.0,5.90883959]
[1746111992016,4.49291417,1849.1,1849.0,1.21619732]
[1746111992218,9.49292343,1849.1,1849.0,1.21619732]
[1746111992516,1.08128,1849.0,1848.9,13.20946148]
[1746111992820,10.75402271,1849.0,1848.9,10.94273148]
[1746111993011,17.37602221,1849.0,1848.5,10.94273148]
[1746111993211,1.08152,1848.6,1848.5,19.06469738]
[1746111993807,1.08152,1848.6,1848.5,10.94273148]
[1746111994611,11.95752,1848.6,1848.5,10.94273148]
[1746111995015,12.05328204,1848.6,1848.5,10.94273148]
[1746111995521,11.95752,1848.6,1848.5,10.94273148]
[1746111995914,10.97176094,1848.6,1848.4,17.8955302]
[1746111996214,1.08175,1848.2,1848.1,21.47463625]
[1746111996422,3.702,1848.2,1848.1,21.47463625]
[1746111996608,1.08175,1848.2,1848.1,29.59660215]
[1746111996820,1.08175,1848.3,1848.1,29.59660215]
[1746111997017,3.2078,1848.4,1848.2,8.1219659]
[1746111997218,1.08163,1848.4,1848.3,8.1219659]
[1746111997515,12.7858,1848.5,1848.3,8.1219659]
[1746111997516,5.876,1848.5,1848.4,1.08163]
[1746111997714,6.95757,1848.5,1848.4,8.1219659]
[1746111998317,1.08149,1848.7,1848.5,1.08156]
[1746111998514,1.08142,1848.8,1848.6,8.1219659]
[1746111998719,1.08142,1848.8,1848.5,4.28936]
[1746111998927,1.08142,1848.8,1848.7,8.1219659]
[1746111999325,3.60530297,1848.9,1848.7,8.1219659]
[1746111999519,4.68670297,1848.9,1848.8,8.1219659]
[1746111999920,3.60530297,1848.9,1848.8,8.1219659]
[1746112000227,4.68664297,1848.9,1848.8,8.1219659]
[1746112000628,3.60530297,1848.9,1848.8,9.2033659]
[1746112000930,3.702,1849.0,1848.9,1.08134]
[1746112001126,1.18941072,1849.1,1848.9,9.2033059]
[1746112001317,0.10816072,1849.1,1849.0,9.2032459]
[1746112002128,0.10816072,1849.1,1849.0,14.2032459]
[1746112003330,1.18938072,1849.1,1849.0,8.1219659]
[1746112003525,0.10816072,1849.1,1849.0,50.0032459]
[1746112003724,1.18938072,1849.1,1849.0,50.0032459]
[1746112004130,0.10816072,1849.1,1849.0,50.0032459]
[1746112005336,0.10816072,1849.1,1849.0,55.0032459]
[1746112005634,1.18938072,1849.1,1849.0,50.0032459]
[1746112006434,0.10816072,1849.1,1849.0,50.0032459]
[1746112006935,1.18938072,1849.1,1849.0,50.0032459]
[1746112007128,1.18938072,1849.1,1849.0,48.9219659]
[1746112007631,1.08134,1848.9,1848.8,4.78337]
[1746112007831,1.08134,1848.9,1848.8,12.9053359]
[1746112008034,1.08134,1848.9,1848.8,8.1219659]
[1746112008623,1.08144,1848.8,1848.7,1.08144]
[1746112008828,1.08138,1848.9,1848.8,9.2033459]
[1746112009032,4.28912,1849.0,1848.9,1.08134]
[1746112009339,3.2078,1849.0,1848.9,9.2033059]
[1746112009531,1.18941072,1849.1,1849.0,1.08128]
[1746112009731,1.18941072,1849.1,1849.0,9.2032459]
[1746112009931,1.18941072,1849.1,1848.9,1.0813]
[1746112010128,1.18941072,1849.1,1849.0,8.1219659]
[1746112010327,1.0814,1848.8,1848.7,8.1219659]
[1746112010836,1.0814,1848.8,1848.7,9.2034259]
[1746112011334,1.08139,1848.9,1848.8,1.0814]
[1746112011531,3.31596072,1849.1,1848.6,40.8]
[1746112011734,4.39721072,1849.1,1849.0,1.08128]
[1746112012337,3.31596072,1849.1,1848.9,1.08129]
[1746112012528,1.08128,1849.0,1848.9,9.2032559]
[1746112013138,1.18944072,1849.1,1848.9,9.2032559]
[1746112013333,1.08128,1849.0,1848.9,9.2032559]
[1746112013635,1.08128,1849.0,1848.9,8.1219659]
[1746112014039,1.08128,1849.0,1848.9,9.2033059]
[1746112014726,1.08128,1849.0,1848.9,8.1219659]
[1746112014926,1.08128,1849.0,1848.8,1.08135]
[1746112015132,1.18941072,1849.1,1848.9,9.2032659]
[1746112015331,0.10816072,1849.1,1849.0,1.08128]
[1746112015532,1.08128,1849.0,1848.9,8.1219659]
[1746112015741,1.08128,1849.0,1848.9,1.08134]
[1746112016038,1.08128,1849.0,1848.9,9.2033059]
[1746112016433,1.18942072,1849.1,1849.0,1.08128]
[1746112016633,0.10816072,1849.1,1849.0,9.2032459]
[1746112016834,1.18938072,1849.1,1849.0,1.08128]
[1746112017035,1.18938072,1849.1,1849.0,9.2032459]
[1746112018844,1.18938072,1849.1,1849.0,8.1219659]
[1746112019643,1.18938072,1849.1,1849.0,9.2032459]
[1746112020142,0.10816072,1849.1,1849.0,9.2032459]
[1746112020345,0.10816072,1849.1,1849.0,14.2032459]
[1746112020732,1.08105,1849.4,1849.3,1.08111]
[1746112020942,1.08105,1849.4,1849.3,4.28891]
[1746112021142,1.08105,1849.4,1849.3,12.4108759]
[1746112021340,1.08105,1849.4,1849.3,11.3297659]
[1746112021846,1.08105,1849.4,1849.3,8.1219659]
[1746112022645,1.08111,1849.3,1849.2,1.08114]
[1746112022845,1.08122,1849.1,1849.0,4.28904]
[1746112023347,1.08134,1848.9,1848.8,3.2078]
[1746112023646,2.70352,1848.8,1848.4,4.28939]
[1746112023844,1.08146,1848.7,1848.6,8.1219659]
[1746112024250,1.08157,1848.5,1848.4,45.08941]
[1746112024637,1.08156,1848.6,1848.4,53.2113759]
[1746112024846,1.08157,1848.5,1848.4,44.0078]
[1746112025144,1.08156,1848.6,1848.5,8.1219659]
[1746112026033,2.7038,1848.6,1848.0,6.9088]
[1746112026239,1.08174,1848.3,1848.2,8.1219659]
[1746112026444,8.5798,1848.6,1848.2,8.1219659]
[1746112026445,5.876,1848.6,1848.3,9.2036259]
[1746112026643,8.5798,1848.6,1848.2,41.88171]
[1746112026947,1.08163,1848.4,1848.3,8.1219659]
[1746112027446,1.08163,1848.4,1848.2,41.88171]
[1746112027745,1.08163,1848.4,1848.3,9.2036559]
[1746112027947,1.08163,1848.4,1848.3,8.1219659]
[1746112028148,1.08163,1848.4,1848.2,42.32551]
[1746112028342,1.08163,1848.4,1848.3,8.1219659]
[1746112028545,1.08163,1848.4,1848.3,1.08169]
[1746112028743,1.08162,1848.5,1848.3,9.2036159]
[1746112028945,1.08162,1848.5,1848.4,8.1219659]
[1746112029449,1.08169,1848.3,1848.2,44.4516]
[1746112029647,1.08169,1848.3,1848.2,45.53335]
[1746112029950,1.08162,1848.5,1848.3,1.08169]
[1746112030245,1.08163,1848.4,1848.3,9.2036559]
[1746112030436,1.08163,1848.4,1848.3,1.08169]
[1746112030637,5.9116,1848.6,1848.2,44.4516]
[1746112030839,5.876,1848.7,1848.4,9.2035759]
[1746112031042,6.95747,1848.7,1848.5,8.1219659]
[1746112031242,1.08152,1848.6,1848.5,9.2035159]
[1746112031635,1.08152,1848.6,1848.5,8.1219659]
[1746112032445,1.08163,1848.5,1848.3,1.08166]
[1746112032646,1.08163,1848.4,1848.3,1.08166]
[1746112032844,8.5797,1848.7,1848.5,8.1219659]
[1746112033044,1.08163,1848.4,1848.3,8.1219659]
[1746112033449,1.08169,1848.3,1848.2,45.53334]
[1746112033842,1.08169,1848.3,1848.2,53.2115059]
[1746112034147,1.08169,1848.3,1848.2,52.1297659]
[1746112034856,1.0819,1848.0,1847.8,6.9098]
[1746112035041,1.08193,1847.9,1847.8,6.9098]
[1746112035249,1.0821,1847.6,1847.5,3.702]
[1746112035448,1.08209,1847.7,1847.6,1.08209]
[1746112035853,1.08209,1847.7,1847.6,50.0040559]
[1746112036152,5.91248,1848.0,1847.6,48.9219659]
[1746112036354,1.08204,1847.7,1847.6,40.8]
[1746112036756,1.08204,1847.7,1847.6,48.9219659]
[1746112037053,1.08204,1847.7,1847.6,40.8]
[1746112038251,1.0821,1847.6,1847.5,0.4437]
[1746112038755,1.0821,1847.6,1847.5,41.2437]
[1746112039151,1.0821,1847.6,1847.5,0.4437]
[1746112039748,4.2899,1847.6,1847.5,0.4437]
[1746112039945,7.9909,1847.6,1847.5,0.4437]
[1746112040150,1.08234,1847.2,1847.1,1.08239]
[1746112040448,1.08232,1847.3,1847.2,9.2042859]
[1746112040645,1.08232,1847.3,1847.2,12.4120859]
[1746112040957,1.08232,1847.3,1847.2,4.29012]
[1746112041157,1.08232,1847.3,1847.2,12.4120859]
[1746112041355,11.95832,1847.3,1847.2,2.04714]
[1746112041651,2.70596,1847.2,1846.6,1.08263]
[1746112041847,1.08251,1846.9,1846.8,8.1219659]
[1746112042655,1.08257,1846.8,1846.7,1.52643]
[1746112042859,1.08257,1846.8,1846.7,0.4438]
[1746112043060,1.08257,1846.8,1846.7,9.6483959]
[1746112043351,1.08257,1846.8,1846.7,9.6483759]
[1746112043560,1.08251,1847.0,1846.9,1.08251]
[1746112043746,10.66034,1847.2,1847.1,8.1219659]
[1746112043945,4.78434,1847.2,1847.1,8.1219659]
[1746112044154,1.0822,1847.5,1847.1,19.0357559]
[1746112044357,1.08222,1847.4,1847.3,3.2078]
[1746112044757,3.703,1847.6,1847.5,8.1219659]
[1746112044953,1.08214,1847.6,1847.5,8.1219659]
[1746112045157,1.08223,1847.4,1847.3,1.08224]
[1746112045358,1.08218,1847.5,1847.4,1.08219]
[1746112045954,1.08218,1847.5,1847.4,9.2041559]
[1746112046259,1.08213,1847.6,1847.5,1.08212]
[1746112046458,1.08213,1847.6,1847.5,9.2040859]
[1746112046859,1.08222,1847.4,1847.3,1.08224]
[1746112047262,1.08222,1847.4,1847.3,9.2042059]
[1746112047462,1.08222,1847.4,1847.3,50.0042059]
[1746112048362,19.09713297,1847.8,1847.3,50.0042059]
[1746112048363,19.09713297,1847.8,1847.3,52.1297659]
[1746112048562,1.08219,1847.5,1847.4,1.08217]
[1746112049058,1.08219,1847.5,1847.4,9.2041359]
[1746112049863,12.7868,1847.8,1847.4,8.1219659]
[1746112050066,1.08209,1847.7,1847.6,8.1219659]
[1746112050763,3.2078,1848.2,1847.7,2.70511]
[1746112050957,1.08193,1847.9,1847.8,1.08197]
[1746112051161,1.08187,1848.0,1847.9,9.2038759]
[1746112051462,1.08187,1848.0,1847.9,8.1219659]
[1746112051651,1.08198,1847.8,1847.7,4.28978]
[1746112052858,1.08198,1847.8,1847.7,12.4117459]
[1746112053364,1.08195,1847.9,1847.8,1.08192]
[1746112053553,3.2078,1848.2,1847.9,8.1219659]
[1746112053758,3.2078,1848.2,1848.1,8.1219659]
[1746112053958,4.28962,1848.2,1848.1,8.1219659]
[1746112054166,1.08173,1848.3,1848.2,1.08172]
[1746112054364,1.08165,1848.4,1848.3,1.08165]
[1746112054568,1.08169,1848.3,1848.2,1.08172]
[1746112055066,1.08169,1848.3,1848.2,9.2036859]
[1746112055265,1.08169,1848.3,1848.2,9.2036759]
[1746112055766,1.08168,1848.4,1848.3,1.08168]
[1746112055957,1.08168,1848.4,1848.3,9.2036459]
[1746112056468,1.08162,1848.5,1848.4,1.08162]
[1746112056667,1.08162,1848.5,1848.4,9.2035859]
[1746112056969,1.08162,1848.5,1848.4,8.1219659]
[1746112057170,1.08171,1848.3,1848.2,1.08169]
[1746112057561,1.08171,1848.3,1848.2,9.2036559]
[1746112057761,1.08168,1848.4,1848.3,1.08168]
[1746112058162,3.2078,1848.8,1848.4,2.70409]
[1746112058462,1.0815,1848.7,1848.6,9.2034659]
[1746112058664,1.0815,1848.7,1848.6,1.0815]
[1746112059669,1.08155,1848.6,1848.5,1.08152]
[1746112060063,1.08155,1848.6,1848.5,9.2034859]
[1746112060265,1.08155,1848.6,1848.5,8.1219659]
[1746112060576,1.08157,1848.5,1848.4,40.8]
[1746112060760,1.08157,1848.5,1848.4,48.9219659]
[1746112061571,1.08157,1848.5,1848.4,40.8]
[1746112062565,1.08153,1848.6,1848.5,1.0815]
[1746112062964,1.08153,1848.6,1848.5,9.2034659]
[1746112063362,8.57909,1849.1,1848.5,19.0336959]
[1746112063569,6.95729,1849.1,1849.0,8.1219659]
[1746112063868,1.08129,1849.1,1849.0,8.1219659]
[1746112064875,1.08128,1849.0,1848.9,1.0813]
[1746112065266,1.08134,1848.9,1848.8,3.2078]
[1746112065468,1.08134,1848.9,1848.8,12.4111659]
[1746112066676,1.08134,1848.9,1848.8,9.2033659]
[1746112066874,1.08134,1848.9,1848.8,8.1219659]
[1746112067064,1.08146,1848.7,1848.6,6.9098]
[1746112067270,1.08146,1848.7,1848.6,3.2078]
[1746112067770,1.08157,1848.5,1848.4,41.88162]
[1746112068166,1.08157,1848.5,1848.4,50.0035859]
[1746112068379,1.08157,1848.5,1848.4,40.8]
[1746112068568,1.08169,1848.3,1848.2,4.28951]
[1746112068978,1.08169,1848.3,1848.2,45.08951]
[1746112069175,8.57976,1848.7,1848.2,57.1297659]
[1746112069375,1.08158,1848.6,1848.5,9.2035059]
[1746112070779,1.08158,1848.6,1848.5,8.1219659]
[1746112070979,1.08163,1848.4,1848.3,1.08165]
[1746112071169,1.08162,1848.5,1848.4,1.08158]
[1746112071574,1.08162,1848.5,1848.4,9.2035459]
[1746112072175,1.08162,1848.5,1848.4,8.1219659]
[1746112072371,1.08169,1848.4,1848.2,44.0078]
[1746112072578,2.70406,1848.5,1848.3,8.1219659]
[1746112072775,1.08163,1848.4,1848.3,8.1219659]
[1746112073677,1.08181,1848.1,1848.0,6.9088]
[1746112073981,1.08179,1848.2,1848.1,8.1219659]
[1746112074174,1.08174,1848.3,1848.2,1.08172]
[1746112074580,1.08174,1848.3,1848.2,1.52412]
[1746112075279,1.08174,1848.3,1848.2,0.4424]
[1746112081280,1.08174,1848.3,1848.2,9.6461159]
[1746112081485,6.95756,1848.6,1848.5,1.08157]
[1746112081681,1.08156,1848.6,1848.5,9.2035359]
[1746112081986,1.08165,1848.4,1848.3,1.08164]
[1746112082387,1.08161,1848.5,1848.4,1.08157]
[1746112082874,1.08161,1848.5,1848.4,9.2035359]
[1746112084087,1.08156,1848.6,1848.5,1.08152]
[1746112084391,1.08156,1848.6,1848.5,9.2034859]
[1746112084574,1.08151,1848.7,1848.6,1.08147]
[1746112084777,1.08151,1848.7,1848.6,9.2034359]
[1746112085979,1.08151,1848.7,1848.6,8.1219659]
[1746112086883,1.08151,1848.7,1848.6,9.2034859]
[1746112087084,1.08151,1848.7,1848.6,8.1219659]
[1746112087786,1.08151,1848.7,1848.6,9.2034859]
[1746112087982,1.08151,1848.7,1848.6,8.1219659]
[1746112088983,3.7,1849.0,1848.6,8.1219659]
[1746112089189,1.08134,1848.9,1848.8,9.2033359]
[1746112089583,1.08134,1848.9,1848.8,8.5636659]
[1746112090083,1.08134,1848.9,1848.8,0.4417]
[1746112090285,4.28914,1848.9,1848.8,0.4417]
[1746112098104,1.08134,1848.9,1848.8,0.4417]
[1746112098305,1.08134,1848.9,1848.8,9.6450659]
[1746112098502,1.08134,1848.9,1848.8,8.5636659]
[1746112098702,1.08134,1848.9,1848.8,9.6450659]
[1746112099308,1.08134,1848.9,1848.8,8.5636659]
[1746112100000,1.08134,1848.9,1848.8,0.4417]
[1746112103104,1.08181,1848.1,1848.0,55.73643755]
[1746112103598,1.08181,1848.1,1848.0,63.85840345]
[1746112103912,1.08181,1848.1,1848.0,60.65060345]
[1746112104104,1.08181,1848.1,1848.0,10.64681755]
[1746112104303,4.28961,1848.1,1848.0,10.64681755]
[1746112107204,1.08198,1847.8,1847.7,40.8]
[1746112107600,1.08189,1848.0,1847.9,1.08189]
[1746112107799,3.2078,1848.1,1847.9,8.1219659]
[1746112108005,4.28961,1848.1,1848.0,8.1219659]
[1746112110213,4.28961,1848.1,1848.0,9.2038359]
[1746112110809,1.08181,1848.1,1848.0,8.1219659]
[1746112111009,2.70449,1848.2,1847.8,1.08194]
[1746112111313,1.08195,1847.9,1847.8,1.08194]
[1746112112111,1.08191,1848.0,1847.9,1.08189]
[1746112112513,1.08191,1848.0,1847.9,9.2038559]
[1746112113617,1.08191,1848.0,1847.9,8.1219659]
[1746112113913,1.08198,1847.8,1847.7,45.08981]
[1746112114514,1.08198,1847.8,1847.7,53.2117759]
[1746112115107,1.08198,1847.9,1847.8,1.08195]
[1746112115508,1.08198,1847.9,1847.8,9.2039159]
[1746112117611,1.08198,1847.9,1847.8,8.1219659]
[1746112118214,1.08198,1847.9,1847.8,9.2039459]
[1746112119913,5.91236,1848.1,1847.8,9.2039459]
[1746112120118,5.91236,1848.1,1847.7,44.0078]
[1746112120119,6.9048,1848.3,1847.9,8.1219659]
[1746112120319,4.28954,1848.3,1848.2,9.2037159]
[1746112120519,4.28954,1848.3,1848.2,8.1219659]
[1746112120719,4.28954,1848.3,1848.2,9.2037159]
[1746112120919,4.28954,1848.3,1848.2,8.1219659]
[1746112121216,3.60530297,1848.4,1848.3,1.08169]
[1746112121421,3.60530297,1848.4,1848.3,9.2036559]
[1746112121720,3.60530297,1848.4,1848.3,17.4114559]
[1746112122223,3.60530297,1848.6,1848.5,1.08157]
[1746112122411,3.60530297,1848.6,1848.5,12.4113359]
[1746112124221,4.28917,1848.9,1848.8,1.0814]
[1746112124517,4.28917,1848.9,1848.8,8.1219659]
[1746112124710,4.28917,1848.9,1848.8,9.2033659]
[1746112125423,3.2078,1848.9,1848.8,9.2033659]
[1746112125623,1.08127,1849.1,1849.0,1.08128]
[1746112125816,1.08131,1849.0,1848.9,1.08129]
[1746112126216,1.08131,1849.0,1848.9,9.2032559]
[1746112126817,4.77917,1849.2,1849.1,1.08122]
[1746112127024,4.77917,1849.2,1849.1,9.2031859]
[1746112127325,1.08117,1849.2,1849.1,9.2031859]
[1746112127820,1.08117,1849.2,1849.1,8.1219659]
[1746112128120,1.08117,1849.2,1849.1,9.2031859]
[1746112128929,1.08115,1849.3,1849.2,1.08115]
[1746112129125,1.08117,1849.2,1849.1,9.2031459]
[1746112129426,1.08117,1849.2,1849.1,8.1219659]
[1746112129620,1.08122,1849.1,1849.0,1.08126]
[1746112130013,1.08122,1849.1,1849.0,9.2032259]
[1746112130622,1.08122,1849.1,1849.0,1.08126]
[1746112130823,2.70278,1849.3,1848.9,40.8]
[1746112131024,1.08125,1849.1,1849.0,1.08126]
[1746112131224,5.91044,1849.4,1848.9,48.9219659]
[1746112131425,1.08125,1849.1,1849.0,1.08125]
[1746112133530,1.08128,1849.0,1848.9,41.88129]
[1746112134221,1.08128,1849.0,1848.9,50.0032559]
[1746112134627,1.08127,1849.1,1849.0,1.08128]
[1746112134821,1.08127,1849.1,1849.0,9.2032459]
[1746112135017,1.08127,1849.1,1849.0,1.08128]
[1746112135828,1.08128,1849.0,1848.9,41.88129]
[1746112136228,1.08128,1849.0,1848.9,50.0032559]
[1746112137424,1.08128,1849.0,1848.9,40.8]
[1746112137630,1.08134,1848.9,1848.8,1.0814]
[1746112138125,1.08162,1848.5,1848.4,1.08157]
[1746112138332,1.08155,1848.6,1848.5,1.08152]
[1746112138531,1.08149,1848.7,1848.6,1.08149]
[1746112139033,1.08152,1848.6,1848.5,1.08152]
[1746112139429,1.08152,1848.6,1848.5,9.2034859]
[1746112140633,1.08149,1848.7,1848.6,1.08145]
[1746112140833,1.08145,1848.8,1848.7,1.0814]
[1746112141421,2.70324,1849.0,1848.7,1.0814]
[1746112141422,5.91072,1849.3,1848.9,1.08129]
[1746112141627,8.61364,1849.3,1849.0,8.1219659]
[1746112141828,1.08122,1849.1,1849.0,8.1219659]
[1746112143437,1.08122,1849.1,1849.0,9.2032459]
[1746112144138,3.694,1849.4,1849.0,9.2032459]
[1746112144333,1.08106,1849.4,1849.3,9.2030759]
[1746112144536,1.0812,1849.2,1849.1,1.08119]
[1746112144835,1.0812,1849.2,1849.1,41.88119]
[1746112145037,1.0812,1849.2,1849.1,50.0031559]
[1746112145237,1.0812,1849.2,1849.1,48.9219659]
[1746112145437,1.0812,1849.2,1849.1,40.8]
[1746112145932,1.0812,1849.2,1848.7,4.77441]
[1746112146137,1.0814,1848.8,1848.7,7.98221]
[1746112146331,1.08138,1848.9,1848.8,1.0814]
[1746112146532,1.08138,1848.9,1848.8,41.8814]
[1746112146731,1.08138,1848.9,1848.8,8.1219659]
[1746112147936,1.08138,1848.9,1848.8,9.2033659]
[1746112148441,3.2078,1849.1,1848.8,8.1219659]
[1746112148740,4.28902,1849.1,1849.0,8.1219659]
[1746112149133,1.08134,1848.9,1848.8,1.08139]
[1746112149940,1.08134,1848.9,1848.8,9.2033559]
[1746112151942,1.08134,1848.9,1848.8,8.1219659]
[1746112154745,1.0814,1848.8,1848.7,1.08145]
[1746112155340,5.91092,1849.1,1848.7,1.08145]
[1746112155341,9.0838,1849.3,1848.8,2.70351]
[1746112155536,6.9008,1849.5,1849.2,8.1219659]
[1746112155739,1.08114,1849.3,1849.2,1.08117]
[1746112155943,4.28879,1849.5,1849.4,8.1219659]
[1746112156439,1.08111,1849.3,1849.0,5.91101]
[1746112156638,1.08122,1849.2,1849.1,1.08119]
[1746112157044,1.08122,1849.2,1849.1,9.2031559]
[1746112158645,2.70271,1849.4,1849.1,9.2031559]
[1746112158646,1.08114,1849.3,1849.2,1.08109]
[1746112159045,1.08114,1849.3,1849.2,9.2030559]
[1746112162245,1.0811,1849.4,1849.3,1.08105]